Workbook

Sheet 심의안건
A1: 2017년도 제1회 지방보조금 추경편성 심의 조서
T2: (단위 : 천원)
A3: 부서명 | B3: 사업 분류 | C3: 공모여부 | E3: 사유기재 | F3: 보 조 사 업 명 | G3: 보 조 사 업 자 | H3: 과목명 | I3: 사 업 내 용 | J3: 2016년 지원액 | K3: 17년도 제1회 추경 신청액 | P3: 재원비율 | S3: 검토조정액 | U3: 심의조정액
C4: 구분 | D4: 유형 | K4: 계 | L4: 보조금 | O4: 자부담 | P4: 계 | Q4: 보조금 | R4: 자부담 | S4: 1차(해당부서) | T4: 2차(예산부서) | U4: 3차(위원회)
L5: 경정액 | M5: 기정액 | N5: 증감액
A6: 계 | F6: =SUBTOTAL(103,F7:F51)&"건" -> 35건 | J6: =SUBTOTAL(9,J7) -> 0 | K6: =SUBTOTAL(9,K7:K51) -> 6,776,736 | L6: =SUBTOTAL(9,L7:L72) -> 5,667,866 | M6: =SUBTOTAL(9,M7:M72) -> 2,205,500 | N6: =SUBTOTAL(9,N7:N72) -> 3,462,366 | O6: =SUBTOTAL(9,O7:O72) -> 1,108,870 | P6: =Q6+R6 -> 100% | Q6: =L6/K6 -> 84% | R6: =O6/K6 -> 16% | S6: =SUBTOTAL(9,S7:S51) -> 3,462,366 | T6: =SUBTOTAL(9,T7:T51) -> 3,462,366 | U6: =SUBTOTAL(9,U7:U51) -> 3,462,366
A7: 기획감사실 소계 | F7: =SUBTOTAL(103,F8)&"건" -> 1건 | J7: =SUBTOTAL(9,J8) -> 0 | K7: =SUBTOTAL(9,K8) -> 830,000 | L7: 830,000 | M7: 800,000 | N7: 30,000 | O7: 0 | P7: =Q7+R7 -> 100% | Q7: =L7/K7 -> 100% | R7: =O7/K7 -> 0% | S7: =SUBTOTAL(9,S8) -> 30,000 | T7: =SUBTOTAL(9,T8) -> 30,000 | U7: =SUBTOTAL(9,U8) -> 30,000
A8: 기획감사싫 | B8: 보조 | C8: 공모제외 | D8: 유형4 | E8: 지방재정법 제32조의 2 제4항 제4호 | F8: 제3회 예천세계활축제 개최지원 | G8: 활축제추진위원회 | H8: 민간경상사업보조 | I8: 활축제 개최 : 830,000 | K8: =L8+O8 -> 830,000 | L8: 830,000 | M8: 800,000 | N8: 30,000 | P8: =Q8+R8 -> 100% | Q8: 100% | R8: 0% | S8: =N8 -> 30,000 | T8: =S8 -> 30,000 | U8: =T8 -> 30,000
A9: 총무과 소계 | F9: =SUBTOTAL(103,F10)&"건" -> 1건 | J9: =SUBTOTAL(9,J10) -> 0 | K9: 20,000 | L9: 20,000 | M9: 0 | N9: 20,000 | O9: 0 | P9: =Q9+R9 -> 100% | Q9: =L9/K9 -> 100% | R9: =O9/K9 -> 0% | S9: =SUBTOTAL(9,S10) -> 20,000 | T9: =SUBTOTAL(9,T10) -> 20,000 | U9: 20,000
A10: 총무과 | B10: 보조 | C10: 공모제외 | D10: 유형4 | E10: 지방재정법 제32조의 2 제4항 제4호 (도비지원) | F10: 호명면 행복학습센터 활성화사업 지원 | G10: 호명면 행복학습센터 추진위원회 | H10: 민간경상사업보조 | I10: 강사료(40회) : 16,000 현장학습 : 1,880 재료비 등 : 2,120 | K10: =L10+O10 -> 20,000 | L10: 20,000 | N10: =L10-M10 -> 20,000 | P10: =Q10+R10 -> 100% | Q10: =L10/K10 -> 100% | R10: =O10/K10 -> 0% | S10: =N10 -> 20,000 | T10: =S10 -> 20,000 | U10: =T10 -> 20,000
A11: 문화관광과 소계 | F11: =SUBTOTAL(103,F12:F16)&"건" -> 5건 | J11: =SUBTOTAL(9,J12:J16) -> 627,000 | K11: 575,000 | L11: 507,000 | M11: 0 | N11: 507,000 | O11: 68,000 | P11: 100% | Q11: =L11/K11 -> 88% | R11: =O11/K11 -> 12% | S11: =SUBTOTAL(9,S12:S16) -> 507,000 | T11: =SUBTOTAL(9,T12:T16) -> 507,000 | U11: =SUBTOTAL(9,U12:U16) -> 507,000
A12: 문화관광과 | B12: 자체 | C12: 공모제외 | D12: 유형4 | E12: 지방재정법 제32조의2 제4항 제4호 | F12: 소울스테이 수련시설 리모텔링 | G12: 농은수련원 대표 차광철 | H12: 민간자본사업보조 | I12: 객실화장실 및 천정 등 보수 : 240,000천원 | J12: 100,000 | K12: =L12+O12 -> 240,000 | L12: 240,000 | N12: 240,000 | P12: 100% | Q12: =L12/K12 -> 100% | R12: =O12/K12 -> 0% | S12: 240,000 | T12: =S12 -> 240,000 | U12: =T12 -> 240,000
A13: 문화관광과 | B13: 자체 | C13: 공모제외 | D13: 유형4 | E13: 지방재정법 제32조의2 제4항제4호 | F13: 국새인학예술관 환경개선 지원 | G13: 사단법인 초정서예연구원 | H13: 민간자본사업보조 | I13: 화장실건립공사 50,000천원 * 1식 | J13: 363,000 | K13: =L13+O13 -> 50,000 | L13: 50,000 | N13: 50,000 | P13: 100% | Q13: =L13/K13 -> 100% | R13: =O13/K13 -> 0% | S13: 50,000 | T13: =S13 -> 50,000 | U13: =T13 -> 50,000
A14: 문화관광과 | B14: 보조 | C14: 공모제외 | D14: 유형2 | E14: 지방재정법 제32조의2 제4항제2호(도비지원) | F14: 전통한옥개보수사업 | G14: 도정서원 대표 정원섭 | H14: 민간자본사업보조 | I14: 건물개보수 및 화장실 설치 : 100,000천원 | J14: 80,000 | K14: 100,000 | L14: 80,000 | N14: 80,000 | O14: 20,000 | P14: 100% | Q14: 80% | R14: 20% | S14: 80,000 | T14: 80,000 | U14: 80,000
A15: 문화관광과 | B15: 보조 | C15: 공모제외 | D15: 유형2 | E15: 지방재정법 제32조의2제4항제2호 | F15: 호찌민-경주세계문화엑스포 공연 참가 지원 | G15: 예천청단놀음 보존회 | H15: 민간경상사업보조 | I15: 항공료(왕복) : 25,000천원 체재비 : 37,500천원 부대비 : 2,500천원 | K15: 65,000 | L15: 65,000 | N15: =L15-M15 -> 65,000 | P15: 100% | Q15: 100% | R15: 0% | S15: =L15 -> 65,000 | T15: 65,000 | U15: =T15 -> 65,000
A16: 문화관광과 | B16: 자체 | C16: 공모제외 | D16: 유형4 | E16: ·지방재정법 제32조의2 제4항제4호 ·노후되어 미관을 저해하는 금당실마을 초가지붕을 새로 이어 초가원형을 보존함으로써 전통마을의 경관 유지 | F16: 금당실 마을 초가지붕 이기 지원 | G16: 금당실전통마을보존회 | H16: 민간자본사업보조 | I16: 금당실 마을 초가지붕 이기 24동 * 5,000천원 * 60% | J16: 84,000 | K16: 120,000 | L16: 72,000 | N16: 72,000 | O16: 48,000 | P16: 100% | Q16: 60% | R16: 40% | S16: 72,000 | T16: 72,000 | U16: 72,000
A17: 환경관리과 소계 | F17: =SUBTOTAL(103,F18)&"건" -> 1건 | J17: =SUBTOTAL(9,J18) -> 21,000 | K17: =SUBTOTAL(9,K18) -> 42,000 | L17: 42,000 | M17: 21,000 | N17: 21,000 | O17: 0 | P17: =Q17+R17 -> 100% | Q17: 100% | R17: 0% | S17: =SUBTOTAL(9,S18) -> 21,000 | T17: =SUBTOTAL(9,T18) -> 21,000 | U17: 21,000
A18: 환경관리과 | B18: 자체 | C18: 공모대상 | F18: 농촌 빈집정비 지원(일반) | H18: 민간자본사업보조 | I18: 농촌주변 및 주요도로 등 미관저해와 안전사고예방을 위해 농촌빈집정비 실시 | J18: 21,000 | K18: =L18+O18 -> 42,000 | L18: 42,000 | M18: 21,000 | N18: =L18-M18 -> 21,000 | P18: =Q18+R18 -> 100% | Q18: =L18/K18 -> 100% | R18: =O18/K18 -> 0% | S18: =N18 -> 21,000 | T18: =S18 -> 21,000 | U18: =T18 -> 21,000
A19: 농정과 소계 | F19: =SUBTOTAL(103,F20:F34)&"건" -> 15건 | J19: =SUBTOTAL(9,J20:J34) -> 643,765 | K19: 2,471,672 | L19: 1,503,622 | M19: 417,500 | N19: 1,086,122 | O19: 968,050 | P19: =Q19+R19 -> 100% | Q19: =L19/K19 -> 61% | R19: =O19/K19 -> 39% | S19: =SUBTOTAL(9,S20:S34) -> 1,086,122 | T19: =SUBTOTAL(9,T20:T34) -> 1,086,122 | U19: =SUBTOTAL(9,U20:U34) -> 1,086,122
A20: 농정과 | B20: 보조 | C20: 공모제외 | D20: 유형2 | E20: ·지방재정법 제32조의2 제4항제2호 ·정부공보 선정 | F20: 예천군 참깨들깨 생산유통 컨소시엄 사업 | G20: 예천군 참깨들깨 생산유통 컨소시엄 사업단(주관조직 지보농협) | H20: 민간경상사업보조 | I20: 지역단위 테크워크 구축지원 사업 1식 : 150,000,000원*80% (역량강화, 제품디자인 개발, 홍보마케팅 지원) | K20: 150,000 | L20: 120,000 | N20: 120,000 | O20: 30,000 | P20: 100% | Q20: 80% | R20: 20% | S20: =N20 -> 120,000 | T20: =S20 -> 120,000 | U20: =T20 -> 120,000
A21: 농정과 | B21: 보조 | C21: 공모제외 | D21: 유형4 | E21: 지방재정법 제32조의2 제4항제4호 | F21: 한여농 전국 한마음대회 참가 지원 | G21: 사단법인 한국여성농업인 예천군 연합회 | H21: 민간경상사업보조 | I21: 한여농 전국대회 참가 지원 | J21: 5,000 | K21: 7,800 | L21: 7,000 | M21: 5,000 | N21: 2,000 | O21: 800 | P21: 100% | Q21: 90% | R21: 10% | S21: =N21 -> 2,000 | T21: =S21 -> 2,000 | U21: =T21 -> 2,000
A22: 농정과 | B22: 보조 | C22: 공모제외 | D22: 유형4 | E22: 지방재정법 제32조의2 제4항제4호 | F22: 여성농업인 행복바우처 | G22: 관내 여성농업인 | H22: 민간경상사업보조 | I22: 150,000원 * 703명 * 80% | K22: 84,360 | L22: 84,360 | N22: =L22-M22 -> 84,360 | P22: 100% | Q22: 80% | R22: 20% | S22: 84,360 | T22: 84,360 | U22: =T22 -> 84,360
A23: 농정과 | B23: 보조 | C23: 공모대상 | F23: 명품쌀 재배단지 지원 | H23: 민간자본사업보조 | I23: 삼광벼 재배단지 종자대, 영농자재비, 건조료 지원 | K23: 122,012 | L23: 122,012 | N23: 122,012 | P23: 100% | Q23: 100% | R23: 0% | S23: 122,012 | T23: 122,012 | U23: 122,012
A24: 농정과 | B24: 보조 | C24: 공모대상 | F24: 벼 육묘공장(소규모) 개보수 지원 | H24: 민간자본사업보조 | I24: 벼 육묘장 노후시설 개보수 5,000천원 * 12개소 * 50% | K24: 60,000 | L24: 30,000 | N24: 30,000 | O24: 30,000 | P24: 100% | Q24: 50% | R24: 50% | S24: 30,000 | T24: 30,000 | U24: 30,000
A25: 농정과 | B25: 보조 | C25: 공모제외 | D25: 유형4 | E25: 지방재정법 제32조의2 제4항제4호 | F25: 수확기 산물벼 건조료 지원 | G25: 예천군농협쌀조합공동사업법인외2 (별지참조) | H25: 민간자본사업보조 | I25: 2,000원 * 400,000포 * 50% | J25: 365,865 | K25: 800,000 | L25: 400,000 | M25: 300,000 | N25: 100,000 | O25: 400,000 | P25: 100% | Q25: 50% | R25: 50% | S25: 100,000 | T25: 100,000 | U25: 100,000
A26: 농정과 | B26: 보조 | C26: 공모대상 | F26: 공공비축미 매입용 파렛트 지원 | H26: 민간자본사업보조 | I26: 50천원 * 1,250개 * 50% | J26: 67,500 | K26: 62,500 | L26: 31,250 | N26: 31,250 | O26: 31,250 | P26: 100% | Q26: 50% | R26: 50% | S26: 31,250 | T26: 31,250 | U26: =T26 -> 31,250
A27: 농정과 | B27: 보조 | C27: 공모제외 | D27: 유형2 | E27: 지방재정법 제32조의2 제4항제4호 | F27: 용궁순대축제 추진 행사비 지원 | G27: 예천용궁순대축제추진위원회 | H27: 민간경상사업보조 | I27: 100,000,000원 * 1식 | J27: 100,000 | K27: 100,000 | L27: 100,000 | N27: =L27-M27 -> 100,000 | P27: =Q27+R27 -> 100% | Q27: =L27/K27 -> 100% | R27: =O27/K27 -> 0% | S27: 100,000 | T27: 100,000 | U27: 100,000
A28: 농정과 | B28: 보조 | C28: 공모대상 | F28: 농산물 해외수출 홍보사업 지원 | H28: 민간경상사업보조 | I28: 50,000,000원 * 1식 | J28: 25,000 | K28: 50,000 | L28: 50,000 | M28: 25,000 | N28: 25,000 | P28: 100% | Q28: 100% | R28: 0% | S28: 25,000 | T28: 25,000 | U28: 25,000
A29: 농정과 | B29: 보조 | C29: 공모대상 | F29: 소형 이동식 저온저장고 지원 | H29: 민간자본사업보조 | I29: 6,000,000원 * 120동 * 50% | K29: 720,000 | L29: 360,000 | N29: =L29-M29 -> 360,000 | O29: 360,000 | P29: =Q29+R29 -> 100% | Q29: 50% | R29: 50% | S29: 360,000 | T29: 360,000 | U29: 360,000
A30: 농정과 | B30: 보조 | C30: 공모대상 | F30: 무청 건조시설 자재 지원 | H30: 민간자본사업보조 | I30: 4,000,000원 * 10개소 * 50% | K30: 40,000 | L30: 20,000 | N30: =L30-M30 -> 20,000 | O30: 20,000 | P30: =Q30+R30 -> 100% | Q30: 50% | R30: 50% | S30: 20,000 | T30: 20,000 | U30: 20,000
A31: 농정과 | B31: 보조 | C31: 공모대상 | F31: 생강 재배 농가 관수시설 지원 | H31: 민간자본사업보조 | I31: 1,200,000원 * 50개 * 50% | K31: 60,000 | L31: 30,000 | N31: 30,000 | O31: 30,000 | P31: 100% | Q31: 50% | R31: 50% | S31: 30,000 | T31: 30,000 | U31: =T31 -> 30,000
A32: 농정과 | B32: 보조 | C32: 공모대상 | F32: 양채류 재배 농가 종자대 지원 | H32: 민간자본사업보조 | I32: 6,000원 * 5,000kg * 50% | K32: 30,000 | L32: 15,000 | N32: 15,000 | O32: 15,000 | P32: 100% | Q32: 50% | R32: 50% | S32: 15,000 | T32: 15,000 | U32: 15,000
A33: 농정과 | B33: 보조 | C33: 공모대상 | F33: 작목반 유통 물류 장비(지게차) 지원 | H33: 민간자본사업보조 | I33: 30,000,000원 * 1대 * 50% | J33: 30,000 | K33: 15,000 | L33: 15,000 | N33: 15,000 | P33: 100% | Q33: 100% | R33: 0% | S33: 15,000 | T33: 15,000 | U33: 15,000
A34: 농정과 | B34: 보조 | C34: 공모대상 | F34: 우수 농특산물 포장재 개선 지원 | H34: 민간자본사업보조 | I34: 2,500원 * 68,000매 * 70% | J34: 50,400 | K34: 170,000 | L34: 119,000 | M34: 87,500 | N34: =L34-M34 -> 31,500 | O34: 51,000 | P34: =Q34+R34 -> 100% | Q34: =L34/K34 -> 70% | R34: =O34/K34 -> 30% | S34: 31,500 | T34: 31,500 | U34: 31,500
A35: 산림축산과 소계 | F35: =SUBTOTAL(103,F36:F39)&"건" -> 4건 | J35: =SUBTOTAL(9,J36:J39) -> 0 | K35: =SUBTOTAL(9,K36:K39) -> 131,234 | L35: 103,414 | M35: 0 | N35: 103,414 | O35: 27,820 | P35: =Q35+R35 -> 100% | Q35: =L35/K35 -> 79% | R35: =O35/K35 -> 21% | S35: =SUBTOTAL(9,S36:S39) -> 103,414 | T35: =SUBTOTAL(9,T36:T39) -> 103,414 | U35: 103,414
A36: 산림축산과 | B36: 보조 | C36: 공모대상 | F36: 말 먹이용 조사료 지원 | H36: 민간자본사업보조 | I36: 700,000원 * 2두 * 70% | K36: =L36+O36 -> 1,400 | L36: 980 | N36: =L36-M36 -> 980 | O36: 420 | P36: =Q36+R36 -> 100% | Q36: =L36/K36 -> 70% | R36: =O36/K36 -> 30% | S36: =L36 -> 980 | T36: =S36 -> 980 | U36: =T36 -> 980
A37: 산림축산과 | B37: 보조 | C37: 공모대상 | F37: 음수처리 및 투약기 지원 | H37: 민간자본사업보조 | I37: 8,000,000원 * 2세트 * 60% | K37: =L37+O37 -> 16,000 | L37: 9,600 | N37: =L37-M37 -> 9,600 | O37: 6,400 | P37: =Q37+R37 -> 100% | Q37: 60% | R37: 40% | S37: =L37 -> 9,600 | T37: =S37 -> 9,600 | U37: =T37 -> 9,600
A38: 산림축산과 | B38: 자체 | C38: 공모대상 | F38: 축사용 농업부산물 보관창고 신축 | H38: 민간자본사업보조 | I38: 42,000,000원 * 1식 * 50% | K38: 42,000 | L38: 21,000 | N38: 21,000 | O38: 21,000 | P38: 100% | Q38: 50% | R38: 50% | S38: 21,000 | T38: 21,000 | U38: 21,000
A39: 산림축산과 | B39: 보조 | C39: 공모제외 | D39: 유형4 | E39: 지방재정법 제32조의2 제4항제4호 | F39: 농가소독 예찰점검 활동 지원 | G39: 예천축산업협동조합 | H39: 민간경상사업보조 | I39: 71,834,000원 * 1식 | K39: =L39+O39 -> 71,834 | L39: 71,834 | N39: =L39-M39 -> 71,834 | P39: =Q39+R39 -> 100% | Q39: 100% | R39: 0% | S39: =L39 -> 71,834 | T39: =S39 -> 71,834 | U39: 71,834
A40: 건설교통과 소계 | F40: =SUBTOTAL(103,F41)&"건" -> 1건 | J40: =SUBTOTAL(9,J41) -> 732,553 | K40: =SUBTOTAL(9,K41) -> 1,171,630 | L40: 1,171,630 | M40: 870,000 | N40: 301,630 | O40: 0 | P40: 100% | Q40: 100% | R40: 0% | S40: =SUBTOTAL(9,S41) -> 301,630 | T40: =SUBTOTAL(9,T41) -> 301,630 | U40: 301,630
A41: 건설교통과 | B41: 보조 | C41: 공모제외 | D41: 유형4 | E41: 지방재정법 제32조의2 제4항제4호 여객자동차 운수사업법 제50조,경상북도 여객자동차운수사업 재정지원 조례 | F41: 농어촌버스 비수익노선 결손보전 | G41: 예천여객 | H41: 운수업계보조금 | I41: 농어촌버스 업계 비수익노선 운영에 따른 적자 결손보전 | J41: 732,553 | K41: =L41+O41 -> 1,171,630 | L41: 1,171,630 | M41: 870,000 | N41: =L41-M41 -> 301,630 | P41: 100% | Q41: =L41/K41 -> 100% | R41: =O41/K41 -> 0% | S41: =N41 -> 301,630 | T41: =S41 -> 301,630 | U41: =T41 -> 301,630
A42: 보건소 소계 | F42: =SUBTOTAL(103,F43)&"건" -> 1건 | K42: =SUBTOTAL(9,K43) -> 16,200 | L42: =SUBTOTAL(9,L43) -> 16,200 | M42: 0 | N42: 16,200 | O42: 0 | P42: 100% | Q42: =L42/K42 -> 100% | R42: 0% | S42: =SUBTOTAL(9,S43:S43) -> 16,200 | T42: =SUBTOTAL(9,T43:T43) -> 16,200 | U42: =SUBTOTAL(9,U43:U43) -> 16,200
A43: 보건소 | B43: 보조 | C43: 공모제외 | D43: 유형4 | E43: 지방재정법 제32조의2 제4항제4호 | F43: 금연문화 확산을 위한 건강걷기 대회 지원 | G43: 예천군체육회 | H43: 민간경상사업보조 | I43: 금연분위기 조성을 위한 건강걷기대회 - 홍보물품구입 : 10,800 - 참여자 간식 : 5,400 | K43: 16,200 | L43: 16,200 | N43: =L43-M43 -> 16,200 | P43: 100% | Q43: =L43/K43 -> 100% | R43: 0% | S43: =N43 -> 16,200 | T43: =S43 -> 16,200 | U43: =T43 -> 16,200
A44: 농업기술센터 소계 | F44: =SUBTOTAL(103,F45:F46)&"건" -> 2건 | J44: =SUBTOTAL(9,J45:J46) -> 100,000 | K44: 294,000 | L44: 249,000 | M44: 72,000 | N44: 177,000 | O44: 45,000 | P44: 100% | Q44: =L44/K44 -> 85% | R44: =O44/K44 -> 15% | S44: =SUBTOTAL(9,S45:S46) -> 177,000 | T44: =SUBTOTAL(9,T45:T46) -> 177,000 | U44: =SUBTOTAL(9,U45:U46) -> 177,000
A45: 농업기술센터 | B45: 보조 | C45: 공모제외 | D45: 유형2 | E45: 지방재정법 제32조의2 제4항제2호(정부공모) | F45: 농가맛집육성 | G45: 정인화 (용궁면 읍부1길 57-1) | H45: 민간자본사업보조 | I45: 농가맛집신축 80,000천원 주방시설및 기자재 설치 70,000천원 | K45: =L45+O45 -> 150,000 | L45: 105,000 | N45: =L45-M45 -> 105,000 | O45: 45,000 | P45: 100% | Q45: =L45/K45 -> 70% | R45: =O45/K45 -> 30% | S45: =L45 -> 105,000 | T45: =S45 -> 105,000 | U45: =T45 -> 105,000
A46: 농업기술센터 | B46: 보조 | C46: 공모대상 | F46: 농심나눔쉼터조성 | H46: 민간자본사업보조 | I46: 마을단위 쉼터(육각정자) 설치 12,000천원 * 12개소 | J46: 100,000 | K46: =L46+O46 -> 144,000 | L46: 144,000 | M46: 72,000 | N46: =L46-M46 -> 72,000 | P46: =Q46+R46 -> 100% | Q46: 100% | R46: 0% | S46: =N46 -> 72,000 | T46: =S46 -> 72,000 | U46: =T46 -> 72,000
A47: 문화체육사업소 소계 | F47: =SUBTOTAL(103,F48:F51)&"건" -> 4건 | J47: =SUBTOTAL(9,J48:J51) -> 30,000 | K47: =SUBTOTAL(9,K48:K51) -> 1,225,000 | L47: 1,225,000 | M47: 25,000 | N47: 1,200,000 | O47: 0 | P47: =Q47+R47 -> 100% | Q47: 100% | R47: 0% | S47: =SUBTOTAL(9,S48:S51) -> 1,200,000 | T47: =SUBTOTAL(9,T48:T51) -> 1,200,000 | U47: 1,200,000
A48: 문화체육사업소 | B48: 자체 | C48: 공모제외 | D48: 유형4 | E48: ·지방재정법 제32조의2 제4항제4호 ·예천 양궁의 특수성을 고려 경북양궁협회에서 수행하지 아니하고는 해당목적의 달성이 어려워 공모 제외 | F48: 해외스포츠 마케팅 추진(양궁) | G48: 경상북도양궁협회 | H48: 민간경상사업보조 | I48: 우수선수 전지훈련 : 20,000 해외 전지훈련팀 유치 : 20,000 | K48: =L48+O48 -> 40,000 | L48: 40,000 | M48: 20,000 | N48: =L48-M48 -> 20,000 | P48: =Q48+R48 -> 100% | Q48: =L48/K48 -> 100% | R48: =O48/K48 -> 0% | S48: =N48 -> 20,000 | T48: =S48 -> 20,000 | U48: =T48 -> 20,000
A49: 문화체육사업소 | B49: 자체 | C49: 공모제외 | D49: 유형4 | E49: ·지방재정법 제32조의2 제4항제4호 ·야구의 특수성을 고려하여 예천군야구협회에서 수행하지 아니하고는 해당목적 달성이 어려움 | F49: 생활체육 사회인 야구리그전 개최지원 | G49: 예천군야구협회 | H49: 민간행사사업보조 | I49: 행사물품구입 : 4,000 리그대회비 : 8,000 트로피 및 장비대여 : 2,000 홍보물제작 : 1,000 | J49: 5,000 | K49: =L49+O49 -> 15,000 | L49: 15,000 | M49: 5,000 | N49: =L49-M49 -> 10,000 | P49: =Q49+R49 -> 100% | Q49: 100% | R49: 0% | S49: =N49 -> 10,000 | T49: =S49 -> 10,000 | U49: =T49 -> 10,000
A50: 문화체육사업소 | B50: 보조 | C50: 공모제외 | D50: 유형2 | E50: 지방재정법 제32조의2 제4항제2호 | F50: 유천초등학교 개방형 체육관 건립 | G50: 예천교육청 | H50: 교육기관에대한보조 | I50: 체육관건립 1식 | K50: 1,100,000 | L50: 1,100,000 | N50: 1,100,000 | P50: =Q50+R50 -> 100% | Q50: =L50/K50 -> 100% | R50: =O50/K50 -> 0% | S50: =N50 -> 1,100,000 | T50: =S50 -> 1,100,000 | U50: 1,100,000
A51: 문화체육사업소 | B51: 자체 | C51: 공모제외 | D51: 유형4 | E51: 제4항제4호 | F51: 예천군수배 전국 궁도대회 개최지원 | G51: 예천군궁도협회 | H51: 민간경상사업보조 | I51: 시상금,심판수당 : 39,000 홍보비,홍보책 인쇄비,사무용품 등 : 25,000 기타 : 6,000 | J51: 25,000 | K51: 70,000 | L51: 70,000 | N51: 70,000 | P51: 100% | Q51: 100% | R51: 0% | S51: 70,000 | T51: =S51 -> 70,000 | U51: 70,000

Sheet 대상자별지내역
A1: 2017년도 제1회 지방보조금 추경편성 심의 대상자내역 별지 조서
L2: (단위 : 천원)
A3: 부서명 | B3: 보 조 사 업 명 | C3: 보 조 사 업 자 | E3: 과목명 | F3: 사 업 내 용 | G3: 2016년 지원액 | H3: 계 | I3: 보조금 | J3: 자부담 | K3: 1차(해당부서) | L3: 2차(예산부서) | M3: 3차(위원회)
C4: 주소 | D4: 성명
A5: 소계 | B5: =SUBTOTAL(103,B6:B8) -> 3 | G5: =SUBTOTAL(9,G6:G8) -> 354,865 | H5: 800,000 | I5: 400,000 | J5: 400,000 | K5: 400,000 | L5: 400,000 | M5: 400,000
A6: 농정과 | B6: 수확기 산물벼 건조료 지원 | C6: 예천읍 양궁로 130 | D6: 예천군농협쌀조합 공동사업법인(김광수) | E6: 민간자본사업보조 | F6: 2,000원 * 300,000포 * 50% | G6: 269,498 | H6: =I6+J6 -> 600,000 | I6: 300,000 | J6: 300,000 | K6: 300,000 | L6: =K6 -> 300,000 | M6: =L6 -> 300,000
A7: 농정과 | B7: 수확기 산물벼 건조료 지원 | C7: 지보면 지보로 180 | D7: 지보농업협동조합 (이인진) | E7: 민간자본사업보조 | F7: 2,000원 * 40,000포 * 50% | G7: 31,893 | H7: =I7+J7 -> 80,000 | I7: 40,000 | J7: 40,000 | K7: 40,000 | L7: =K7 -> 40,000 | M7: =L7 -> 40,000
A8: 농정과 | B8: 수확기 산물벼 건조료 지원 | C8: 풍양면 삼강로 521 | D8: 풍양미곡종합처리장 (김준동) | E8: 민간자본사업보조 | F8: 2,000원 * 60,000포 * 50% | G8: 53,474 | H8: 120,000 | I8: 60,000 | J8: 60,000 | K8: 60,000 | L8: 60,000 | M8: 60,000
